bitfinex/quotes_ETHUSD_20241215
["timestamp","ask_amount","ask_price","bid_price","bid_amount"]
[1734281684407,0.49946432,3910.4,3909.9,3.0]
[1734281685459,0.49946432,3910.4,3910.0,0.87375271]
[1734281685820,0.3376,3910.3,3910.0,0.87375271]
[1734281686020,0.3376,3910.3,3909.9,3.95435589]
[1734281686778,0.3376,3910.3,3909.8,2.12739177]
[1734281687065,0.3376,3910.3,3909.9,3.87394366]
[1734281687220,0.3376,3910.3,3909.8,2.12739177]
[1734281688664,0.3376,3910.3,3909.5,3.7947]
[1734281688969,0.3376,3910.3,3909.6,0.87435024]
[1734281690327,0.3376,3910.3,3909.6,3.87435024]
[1734281690633,0.3376,3910.3,3909.7,0.87435024]
[1734281690954,0.3376,3910.3,3909.5,3.0]
[1734281691151,0.3376,3910.3,3909.6,2.18671775]
[1734281691464,0.3376,3910.3,3909.7,0.87469631]
[1734281691631,0.3376,3910.3,3909.5,4.0637471]
[1734281691834,0.3376,3910.3,3909.6,2.18712318]
[1734281692048,0.3376,3910.3,3909.7,0.87484927]
[1734281692369,0.3376,3910.3,3909.5,5.28164777]
[1734281692566,0.3376,3910.3,3909.6,2.1873083]
[1734281692771,0.3376,3910.3,3909.7,0.87492332]
[1734281692998,0.3376,3910.3,3909.5,5.28164777]
[1734281693283,0.3376,3910.3,3909.7,3.0]
[1734281693462,0.3376,3910.3,3909.6,0.37442919]
[1734281693649,0.3376,3910.3,3909.7,0.87511125]
[1734281693849,0.3376,3910.3,3909.8,2.12739177]
[1734281694078,0.49946432,3910.4,3910.2,1.00149074]
[1734281698383,2.39395432,3911.0,3910.2,1.00149074]
[1734281698945,2.55696,3910.9,3910.2,1.00149074]
[1734281699252,0.51632769,3910.3,3910.2,1.00149074]
[1734281701336,2.55669,3911.4,3910.2,1.00149074]
[1734281701536,2.55669,3911.4,3910.6,1.00149074]
[1734281701844,1.06138685,3911.9,3910.6,1.18177981]
[1734281702045,2.55626,3912.0,3910.6,1.18177981]
[1734281702046,0.51351433,3911.0,3910.9,1.00149074]
[1734281704585,2.55621,3912.1,3911.0,0.8014]
[1734281704883,2.55621,3912.1,3911.2,1.00149074]
[1734281705581,0.516658,3911.3,3911.2,1.00149074]
[1734281705735,0.516658,3911.3,3911.2,1.18177981]
[1734281705941,0.516658,3911.3,3911.2,0.18028907]
[1734281706179,0.516658,3911.3,3911.0,0.8014]
[1734281708804,0.516658,3911.3,3910.6,4.24403617]
[1734281708953,0.516658,3911.3,3910.7,0.87498589]
[1734281709158,0.516658,3911.3,3910.6,3.0]
[1734281709382,0.516658,3911.3,3910.7,2.18758113]
[1734281709585,0.516658,3911.3,3910.9,3.0]
[1734281709790,0.516658,3911.3,3910.8,1.17373018]
[1734281709991,0.516658,3911.3,3910.9,0.87497194]
[1734281710201,0.516658,3911.3,3910.8,4.17373018]
[1734281711371,0.516658,3911.3,3910.9,0.87507403]
[1734281711728,0.516658,3911.3,3911.0,0.77874684]
[1734281712859,0.516658,3911.3,3911.1,0.8014]
[1734281715693,0.516658,3911.3,3911.0,0.77874684]
[1734281715899,0.516658,3911.3,3910.7,4.8904471]
[1734281716096,0.516658,3911.3,3910.8,2.18925891]
[1734281716286,0.516658,3911.3,3910.6,1.0637471]
[1734281716519,0.516658,3911.3,3910.7,2.18954832]
[1734281716676,0.516658,3911.3,3910.8,0.87581933]
[1734281716879,0.516658,3911.3,3910.4,1.0637471]
[1734281717221,0.516658,3911.3,3910.5,2.18981205]
[1734281717379,0.516658,3911.3,3910.6,0.87592482]
[1734281717575,2.55676,3911.2,3910.4,1.0637471]
[1734281717772,2.55676,3911.2,3910.5,0.87603828]
[1734281718006,2.55676,3911.2,3910.2,2.95396548]
[1734281718183,2.8641018,3911.2,3910.3,2.19037166]
[1734281718591,2.8641018,3911.2,3910.3,3.25411876]
[1734281718592,0.3073418,3911.2,3910.3,3.25411876]
[1734281718815,2.55663,3911.4,3910.4,2.19037166]
[1734281718970,2.55644,3911.7,3910.5,0.87614866]
[1734281719173,2.55644,3911.7,3910.3,1.0637471]
[1734281719174,2.5567,3911.3,3910.3,1.0637471]
[1734281719420,2.5567,3911.3,3910.4,2.19010455]
[1734281719611,2.5567,3911.3,3910.5,0.87604182]
[1734281719823,0.25567,3911.3,3910.3,1.0637471]
[1734281719985,2.55657,3911.5,3910.4,2.19010763]
[1734281720193,2.55657,3911.5,3910.5,0.87608086]
[1734281720383,2.55664,3911.4,3910.6,1.31402677]
[1734281720772,0.5047375,3910.7,3910.6,1.31402677]
[1734281721019,0.5047375,3910.7,3910.6,0.87608086]
[1734281721223,0.5047375,3910.7,3910.3,1.0637471]
[1734281721524,0.5047375,3910.7,3910.4,2.1906791]
[1734281721694,0.5047375,3910.7,3910.5,0.87627164]
[1734281722021,0.5047375,3910.7,3910.3,1.0637471]
[1734281722319,0.5047375,3910.7,3910.4,2.19060025]
[1734281722622,0.5047375,3910.7,3910.5,0.8762401]
[1734281722827,0.5047375,3910.7,3910.6,0.8762408]
[1734281722976,1.06138685,3912.0,3910.6,0.8762408]
[1734281723180,2.55643,3911.7,3910.7,0.87611385]
[1734281723479,2.812073,3911.7,3910.5,1.0637471]
[1734281723680,0.50357725,3910.9,3910.6,2.1903128]
[1734281723879,0.50357725,3910.9,3910.7,0.87612512]
[1734281724191,0.50357725,3910.9,3910.5,1.0637471]
[1734281724400,0.50357725,3910.9,3910.6,2.19055878]
[1734281724614,0.50357725,3910.9,3910.7,0.58115559]
[1734281725179,0.50357725,3910.9,3910.8,0.8267]
[1734281725822,2.55643,3911.7,3910.8,0.8267]
[1734281726108,1.06138685,3912.2,3910.8,0.8267]
[1734281726109,2.55628,3912.0,3910.9,1.00111485]
[1734281726424,2.55628,3912.0,3911.2,1.00111485]
[1734281727183,2.55597,3912.4,3911.2,1.00111485]
[1734281727384,0.51631115,3911.5,3911.2,1.00111485]
[1734281732159,2.55595,3912.5,3911.3,4.25863525]
[1734281732288,2.55595,3912.5,3911.9,1.00111485]
[1734281732493,2.811545,3912.5,3911.9,1.00111485]
[1734281732943,0.52195658,3912.3,3912.2,1.00111485]
[1734281733094,2.67489701,3913.8,3912.2,1.00111485]
[1734281733095,2.55545,3913.2,3912.2,1.00111485]
[1734281733298,2.55532,3913.4,3912.6,1.00111485]
[1734281733528,2.5554,3913.3,3912.6,1.00111485]
[1734281733729,2.81094,3913.3,3912.6,1.00111485]
[1734281734045,2.81094,3913.3,3912.2,3.0]
[1734281734340,0.51985976,3912.7,3912.2,3.0]
[1734281734537,0.51985976,3912.7,3912.1,3.0]
[1734281735732,0.51985976,3912.7,3912.2,0.7743]
[1734281744613,0.51985976,3912.7,3912.0,5.12578994]
[1734281744837,0.51985976,3912.7,3911.9,0.7652]
[1734281745343,0.51985976,3912.7,3911.9,1.65512401]
[1734281745858,2.55593,3912.5,3911.6,3.7652]
[1734281746414,0.51985976,3912.7,3911.6,3.7652]
[1734281746909,2.55597,3912.4,3911.6,3.7652]
[1734281747621,0.51985976,3912.7,3911.6,0.7652]
[1734281747819,0.51985976,3912.7,3911.3,0.12993949]
[1734281747820,2.55612,3912.2,3911.3,0.89513949]
[1734281748750,0.30756198,3912.6,3911.3,0.7652]
[1734281748956,2.5563,3911.9,3911.1,5.12578994]
[1734281749106,0.5202414,3911.7,3911.1,5.12578994]
[1734281750060,0.5202414,3911.7,3911.0,0.7652]
[1734281750270,0.5202414,3911.7,3911.1,3.8738978]
[1734281750562,0.5202414,3911.7,3911.1,3.0]
[1734281750764,0.5202414,3911.7,3911.2,0.6387601]
[1734281751113,3.0766914,3911.7,3910.7,1.8289471]
[1734281751321,3.0766914,3911.7,3910.8,0.87409387]
[1734281753476,0.5202414,3911.7,3910.8,0.87409387]
[1734281754278,0.5202414,3911.7,3910.7,0.7652]
[1734281754472,0.5202414,3911.7,3910.8,5.18599353]
[1734281754776,3.0766714,3911.7,3910.9,5.13165848]
[1734281754968,3.0766714,3911.7,3910.9,1.25720806]
[1734281755950,3.0766714,3911.7,3911.1,1.00100798]
[1734281757282,2.55651,3911.6,3911.1,1.00100798]
[1734281757688,0.5202414,3911.7,3910.7,3.7652]
[1734281757890,2.55659,3911.5,3910.9,1.00100798]
[1734281759001,0.5202414,3911.7,3910.9,1.00100798]
[1734281759200,3.0766714,3911.7,3910.9,1.00100798]
[1734281759354,3.0766714,3911.7,3911.2,1.00100798]
[1734281759555,0.5202414,3911.7,3911.2,1.00100798]
[1734281760569,0.5202414,3911.7,3910.9,0.4766208]
[1734281760912,0.5202414,3911.7,3911.1,1.00100798]
[1734281761810,0.5202414,3911.7,3911.2,0.8018]
[1734281762680,0.5202414,3911.7,3911.1,1.00100798]
[1734281763593,2.55649,3911.6,3910.8,1.79900798]
[1734281764272,0.5202414,3911.7,3910.8,1.00100798]
[1734281764673,2.55663,3911.4,3910.8,1.00100798]
[1734281764899,2.55663,3911.4,3910.8,1.58728349]
[1734281766163,2.55663,3911.4,3910.8,1.00100798]
[1734281766359,2.55675,3911.3,3910.8,1.00100798]
[1734281766963,2.55676,3911.2,3910.8,1.00100798]
[1734281767169,2.55663,3911.4,3910.2,1.8617471]
[1734281767463,2.55689,3911.0,3910.3,3.18859255]
[1734281767682,3.55714798,3912.2,3910.3,1.00100798]
[1734281767683,4.61853483,3912.2,3910.3,1.00100798]
[1734281767912,2.55704,3910.8,3910.3,1.00100798]
[1734281768626,2.55672,3911.3,3910.3,1.00100798]
[1734281768627,2.55708,3910.7,3910.3,1.00100798]
[1734281768839,0.52222071,3910.4,3909.9,1.8617471]
[1734281769044,3.07950071,3910.4,3910.0,2.18823238]
[1734281769349,3.07950071,3910.4,3909.8,1.00100798]
[1734281769350,0.52222071,3910.4,3909.8,1.00100798]
[1734281769632,2.55735,3910.3,3909.8,1.00100798]
[1734281770915,0.52222071,3910.4,3909.8,1.00100798]
[1734281771248,0.52222071,3910.4,3909.8,1.48090878]
[1734281772017,0.52222071,3910.4,3909.8,0.4799008]
[1734281772219,0.52222071,3910.4,3909.6,0.798]
[1734281775147,0.52222071,3910.4,3909.7,2.58330449]
[1734281775447,2.5566,3911.5,3910.2,3.0]
[1734281775448,2.55661,3911.5,3910.2,3.0]
[1734281775745,2.55661,3911.5,3910.2,0.02556861]
[1734281775950,2.55661,3911.5,3910.3,1.64561769]
[1734281776107,2.55661,3911.5,3910.3,0.7721]
[1734281776303,0.2488,3911.7,3910.6,3.32923]
[1734281776304,0.52236228,3911.1,3910.6,3.32923]
[1734281776544,0.52236228,3911.1,3910.6,0.7721]
[1734281776930,2.80523,3911.7,3910.6,0.7721]
[1734281777133,0.2488,3911.7,3910.7,0.84579532]
[1734281777320,0.50573794,3911.2,3910.7,0.84579532]
[1734281778746,0.50573794,3911.2,3910.6,0.7721]
[1734281784429,0.50573794,3911.2,3910.2,1.39389789]
[1734281784621,2.55684,3911.1,3910.2,1.39389789]
[1734281785569,2.55695,3911.0,3910.2,0.7721]
[1734281785733,2.55698,3910.9,3910.2,0.7721]
[1734281786061,2.55701,3910.9,3909.8,0.7721]
[1734281786223,2.55701,3910.9,3909.9,5.18728286]
[1734281786416,0.50573794,3911.2,3909.7,1.3851533]
[1734281786417,2.55703,3910.8,3910.0,0.87491314]
[1734281786667,0.255703,3910.7,3909.5,1.0637471]
[1734281786870,2.55699,3910.9,3909.6,2.18800726]
[1734281787167,2.55699,3910.9,3909.7,0.8752029]
[1734281787374,2.55699,3910.9,3909.5,1.0637471]
[1734281787675,2.55699,3910.9,3909.6,2.18828787]
[1734281787874,2.5568,3911.2,3909.6,2.18828787]
[1734281788071,0.25568,3911.1,3909.7,3.7721]
[1734281788276,0.25568,3911.1,3909.7,0.7721]
[1734281788576,0.25568,3911.1,3909.8,0.87544433]
[1734281789125,2.55708,3910.7,3909.8,0.87544433]
[1734281789322,2.55708,3910.7,3909.7,0.7721]
[1734281789528,2.55708,3910.7,3909.8,0.8755755]
[1734281789776,2.55715,3910.6,3909.8,0.8755755]
[1734281791774,0.50439897,3910.0,3909.8,0.8755755]
[1734281793080,0.5013215,3910.0,3909.9,0.87598292]
[1734281793375,0.5013215,3910.0,3909.7,4.77329214]
[1734281793678,0.5013215,3910.0,3909.8,0.87614942]
[1734281796350,0.5013215,3910.0,3909.8,1.47025829]
[1734281796546,0.5013215,3910.0,3909.9,0.87618152]
[1734281796750,0.5013215,3910.0,3909.8,0.59410887]
[1734281797068,0.5013215,3910.0,3909.9,1.67827051]
[1734281799200,0.5013215,3910.0,3909.9,0.8021]
[1734281799357,0.0513215,3910.0,3909.9,0.8021]
[1734281805230,0.0513215,3910.0,3909.9,0.98868471]
[1734281806329,0.0513215,3910.0,3909.9,1.67829934]
[1734281806545,0.0513215,3910.0,3909.9,1.67829778]
[1734281806725,0.0513215,3910.0,3909.9,0.8021]
[1734281808132,0.0513215,3910.0,3909.6,1.0637471]
[1734281808332,0.0513215,3910.0,3909.7,2.19116893]
[1734281808537,0.0513215,3910.0,3909.8,2.19116893]
[1734281808730,0.0513215,3910.0,3909.6,1.0637471]
[1734281809072,0.0513215,3910.0,3909.7,2.19135321]
[1734281809214,0.0513215,3910.0,3909.7,5.19135321]
[1734281809564,0.0513215,3910.0,3909.8,2.19135321]
[1734281811163,1.06138685,3911.3,3909.9,1.42761003]
[1734281811317,0.51236278,3910.2,3910.0,0.87654128]
[1734281813779,2.55696,3910.9,3910.0,0.87654128]
[1734281814589,1.06138685,3911.3,3910.0,0.87654128]
[1734281815632,1.06138685,3911.3,3909.9,0.8021]
[1734281815977,0.50899604,3910.2,3910.0,0.87714004]
[1734281816281,0.50899604,3910.2,3909.9,0.8021]
[1734281816444,0.50899604,3910.2,3910.0,0.87714147]
[1734281818658,0.50899604,3910.2,3909.9,0.8021]
[1734281820180,0.50899604,3910.2,3909.7,1.0637471]
[1734281820386,3.06640604,3910.2,3909.8,2.19297817]
[1734281820676,3.06640604,3910.2,3909.9,0.87717398]
[1734281820890,3.06640604,3910.2,3909.7,1.0637471]
[1734281821103,3.06640604,3910.2,3909.8,2.19301126]
[1734281822184,0.50899604,3910.2,3909.9,2.19301126]
[1734281822502,0.50899604,3910.2,3910.0,0.8772045]
[1734281822795,0.50899604,3910.2,3909.9,0.7694]
[1734281822995,0.50899604,3910.2,3910.0,0.87728058]
[1734281823566,0.50899604,3910.2,3909.7,1.0637471]
[1734281823768,0.50899604,3910.2,3909.8,2.19355462]
[1734281823967,0.50899604,3910.2,3909.9,2.19355462]
[1734281824166,0.50899604,3910.2,3910.0,0.87742185]
[1734281824364,0.50899604,3910.2,3909.8,1.0637471]
[1734281824567,0.50899604,3910.2,3909.9,2.1939093]
[1734281824812,0.50899604,3910.2,3910.0,0.87756372]
[1734281824968,0.50899604,3910.2,3909.8,1.0637471]
[1734281825165,0.50899604,3910.2,3909.9,2.19390936]
[1734281825401,0.50899604,3910.2,3910.0,2.19390936]
[1734281825604,0.50899604,3910.2,3910.1,0.87756374]
[1734281825922,2.55676,3911.2,3910.2,0.7694]
[1734281826213,2.55663,3911.4,3910.3,2.19408975]
[1734281826512,2.55663,3911.4,3910.4,3.25783685]
[1734281826721,1.31018685,3911.7,3910.5,2.19408975]
[1734281827019,0.50424423,3910.7,3910.3,1.0637471]
[1734281827315,0.50424423,3910.7,3910.4,2.19442008]
[1734281827510,0.50424423,3910.7,3910.5,2.19442008]
[1734281827714,0.50424423,3910.7,3910.6,0.87776803]
[1734281827868,0.50424423,3910.7,3910.6,2.19464817]
[1734281828223,0.50424423,3910.7,3910.6,2.1952613]
[1734281828683,0.50424423,3910.7,3910.6,3.74283477]
[1734281829272,0.50424423,3910.7,3910.6,2.67908767]
[1734281829476,0.50424423,3910.7,3910.6,3.7410524]
[1734281830321,0.50424423,3910.7,3910.6,2.67908767]
[1734281830820,2.55663,3911.4,3910.7,0.7694]
[1734281831024,2.55663,3911.4,3910.8,2.1952613]
[1734281831222,2.55663,3911.4,3910.9,2.1952613]
[1734281831421,2.55663,3911.4,3910.7,0.7694]
[1734281831586,2.55663,3911.4,3910.8,2.1952676]
[1734281831775,2.55663,3911.4,3910.9,0.87810704]
[1734281831971,2.55663,3911.4,3910.7,1.83144551]
[1734281832265,2.55663,3911.4,3910.8,2.19509755]
[1734281832266,0.50992196,3911.0,3910.8,2.19509755]
[1734281832420,0.50992196,3911.0,3910.7,0.7694]
[1734281832624,0.50992196,3911.0,3910.8,2.19509617]
[1734281832917,0.50992196,3911.0,3910.9,0.87803884]
[1734281833102,0.50992196,3911.0,3910.7,0.7694]
[1734281833305,0.50992196,3911.0,3910.8,0.87807308]
[1734281833620,0.50992196,3911.0,3910.7,0.7694]
[1734281833819,0.50992196,3911.0,3910.8,0.87794744]
[1734281834009,0.50992196,3911.0,3910.7,0.7694]
[1734281834231,0.50992196,3911.0,3910.8,2.19477054]
[1734281834437,0.50992196,3911.0,3910.9,2.19457997]
[1734281834924,0.50992196,3911.0,3910.9,3.25662548]
[1734281835523,0.50992196,3911.0,3910.9,2.19457997]
[1734281835726,0.50992196,3911.0,3910.7,2.17251559]
[1734281836044,0.50992196,3911.0,3910.8,2.19361793]
[1734281836231,0.50992196,3911.0,3910.5,1.06204551]
[1734281836393,0.50992196,3911.0,3910.6,2.1938433]
[1734281836728,0.50992196,3911.0,3910.7,2.1938433]
[1734281837029,0.50992196,3911.0,3910.8,0.87754957]
[1734281837189,0.50992196,3911.0,3910.5,1.06204551]
[1734281837372,0.50992196,3911.0,3910.6,2.19380892]
[1734281837576,0.50992196,3911.0,3910.7,0.87749152]
[1734281837787,0.50992196,3911.0,3910.5,1.06204551]
[1734281838027,0.50992196,3911.0,3910.6,2.19375275]
[1734281838231,0.50992196,3911.0,3910.7,2.1937327]
[1734281838381,0.50992196,3911.0,3910.5,1.06204551]
[1734281838581,0.50992196,3911.0,3910.6,2.19356481]
[1734281838827,0.50992196,3911.0,3910.7,0.87742592]
[1734281838982,0.50992196,3911.0,3910.5,1.06204551]
[1734281839179,0.50992196,3911.0,3910.6,3.25548373]
[1734281839383,0.50992196,3911.0,3910.7,2.19343822]
[1734281839709,0.50992196,3911.0,3910.8,2.19311541]
[1734281839876,0.50992196,3911.0,3910.6,1.06204551]
[1734281840078,0.50992196,3911.0,3910.7,2.19289283]
[1734281840279,0.50992196,3911.0,3910.5,1.06204551]
[1734281840583,0.50992196,3911.0,3910.6,2.19285905]
[1734281840810,0.50992196,3911.0,3910.7,0.87719775]
[1734281841005,0.50992196,3911.0,3910.4,1.87394551]
[1734281841210,0.50992196,3911.0,3910.5,2.19301477]
[1734281841481,0.50992196,3911.0,3910.6,0.87720591]
[1734281841678,0.50992196,3911.0,3910.4,1.87394551]
[1734281841922,0.50992196,3911.0,3910.5,2.19279573]
[1734281842124,0.50992196,3911.0,3910.4,1.87394551]
[1734281842279,0.50992196,3911.0,3910.5,2.19274023]
[1734281842480,0.50992196,3911.0,3910.6,2.19274023]
[1734281842729,0.50992196,3911.0,3910.7,0.87709609]
[1734281842935,0.25243684,3911.0,3910.4,1.87394551]
[1734281843133,0.25243684,3911.0,3910.5,2.19272818]
[1734281843301,0.25243684,3911.0,3910.6,2.19272818]
[1734281843640,0.25243684,3911.0,3910.7,0.87709127]
[1734281843827,0.25243684,3911.0,3910.5,1.06204551]
[1734281844025,0.25243684,3911.0,3910.6,2.19264632]
[1734281844239,0.25243684,3911.0,3910.7,0.87705853]
[1734281844443,0.25243684,3911.0,3910.5,1.06204551]
[1734281844744,0.25243684,3911.0,3910.6,2.19243737]
[1734281844892,0.25243684,3911.0,3910.7,2.19243737]
[1734281845097,0.25243684,3911.0,3910.8,0.87697495]
[1734281845298,0.25243684,3911.0,3910.5,1.80296843]
[1734281845536,0.25243684,3911.0,3910.6,2.19232523]
[1734281845843,0.25243684,3911.0,3910.7,2.19232523]
[1734281846146,0.25243684,3911.0,3910.5,1.80296843]
[1734281846341,0.25243684,3911.0,3910.6,2.19239362]
[1734281846515,0.25243684,3911.0,3910.7,2.19239362]
[1734281846710,0.25243684,3911.0,3910.5,0.74092292]
[1734281847030,0.25243684,3911.0,3910.6,2.19243998]
[1734281847229,0.25243684,3911.0,3910.7,0.87697599]
[1734281847436,0.25243684,3911.0,3910.5,1.80296843]
[1734281847613,0.25243684,3911.0,3910.6,2.19228173]
[1734281847804,0.25243684,3911.0,3910.7,0.87691269]
[1734281848000,0.25243684,3911.0,3910.5,1.80296843]
[1734281848238,0.25243684,3911.0,3910.6,2.1923616]
[1734281848443,0.25243684,3911.0,3910.7,0.87694464]
[1734281848750,0.25243684,3911.0,3910.5,1.80296843]
[1734281849047,0.25243684,3911.0,3910.6,2.19264458]
[1734281849253,0.25243684,3911.0,3910.7,0.87705783]
[1734281849416,0.25243684,3911.0,3910.5,1.06204551]
[1734281849599,0.25243684,3911.0,3910.6,0.87702831]
[1734281849803,0.25243684,3911.0,3910.4,1.87394551]
[1734281850164,0.25243684,3911.0,3910.5,2.19246183]
[1734281850308,0.25243684,3911.0,3910.4,0.8119]
[1734281850494,0.25243684,3911.0,3910.5,0.87709036]
[1734281850694,0.25243684,3911.0,3910.3,3.0]
[1734281850935,0.25243684,3911.0,3910.4,0.87711276]
[1734281851116,0.25243684,3911.0,3910.3,3.0]
[1734281851318,0.25243684,3911.0,3910.4,0.87715492]
[1734281851559,0.25243684,3911.0,3910.2,1.87394551]
[1734281851719,0.25243684,3911.0,3910.3,5.1929783]
[1734281851903,2.80932684,3911.0,3910.4,0.87719132]
[1734281852097,2.80932684,3911.0,3910.4,2.19297865]
[1734281852299,2.80932684,3911.0,3910.0,1.57925527]
[1734281852300,2.55704,3910.8,3910.0,1.06204551]
[1734281852621,2.55704,3910.8,3910.1,3.25551248]
[1734281852815,2.55704,3910.8,3910.2,2.19346697]
[1734281853012,2.55704,3910.8,3910.1,1.06204551]
[1734281853013,2.55704,3910.8,3910.3,2.19346697]
[1734281853254,2.55704,3910.8,3910.0,4.06204551]
[1734281853407,2.55704,3910.8,3910.1,2.19336201]
[1734281853607,0.28094768,3910.8,3910.2,0.8773448]
[1734281853946,2.55718,3910.6,3909.8,1.06204551]
[1734281854112,2.55727,3910.5,3909.9,2.19390011]
[1734281854321,2.55727,3910.5,3910.0,2.19390011]
[1734281854564,2.55736,3910.3,3909.7,1.06204551]
[1734281854896,2.55744,3910.2,3909.8,2.19407245]
[1734281855050,2.55744,3910.2,3909.6,1.06204551]
[1734281855216,2.55744,3910.2,3909.7,2.19426752]
[1734281855416,2.55744,3910.2,3909.8,0.87770701]
[1734281855619,0.50389311,3910.1,3909.6,1.06204551]
[1734281855849,0.50389311,3910.1,3909.7,2.1941097]
[1734281856001,0.50389311,3910.1,3909.8,0.87764241]
[1734281856219,0.50389311,3910.1,3909.6,1.06204551]
[1734281856419,0.50389311,3910.1,3909.7,2.19406921]
[1734281856665,0.50389311,3910.1,3909.8,0.87762768]
[1734281856873,0.50389311,3910.1,3909.6,1.06204551]
[1734281857072,0.50389311,3910.1,3909.7,2.19402852]
[1734281857363,0.50389311,3910.1,3909.8,0.87761141]
[1734281857567,0.50389311,3910.1,3909.5,1.06204551]
[1734281857749,0.50389311,3910.1,3909.6,2.19401395]
[1734281857950,0.50389311,3910.1,3909.7,2.19401395]
[1734281858165,0.50389311,3910.1,3909.5,1.06204551]
[1734281858334,0.50389311,3910.1,3909.6,2.1940346]
[1734281858694,0.50389311,3910.1,3909.7,0.87761384]
[1734281858870,0.50389311,3910.1,3909.5,1.06204551]
[1734281859027,0.50389311,3910.1,3909.6,2.19387928]
[1734281859227,0.50389311,3910.1,3909.7,2.19387928]
[1734281859426,0.50389311,3910.1,3909.4,1.06204551]
[1734281859659,0.50389311,3910.1,3909.3,0.8119]
[1734281859660,2.55755,3910.0,3909.5,0.87761866]
[1734281859828,2.55764,3909.9,3909.2,1.06204551]
[1734281860023,2.55764,3909.9,3909.3,2.19433955]
[1734281860260,2.55764,3909.9,3909.4,0.87773582]
[1734281860457,2.55764,3909.9,3909.2,1.06204551]
[1734281860765,2.55764,3909.9,3909.3,2.19394633]
[1734281860987,2.55764,3909.9,3909.4,0.87757853]
[1734281861271,2.89440774,3909.9,3909.2,1.06204551]
[1734281861487,0.33676774,3909.9,3909.3,2.1938028]
[1734281861621,0.50389311,3910.1,3908.9,4.06204551]
[1734281861622,1.00140949,3910.0,3908.9,4.06204551]
[1734281861826,2.55794,3909.4,3909.0,0.87777527]
[1734281862077,2.55794,3909.4,3908.7,1.06204551]
[1734281862271,2.55794,3909.4,3908.8,0.87790357]
[1734281862570,2.558,3909.3,3908.6,0.8091]
[1734281862720,2.558,3909.3,3908.7,2.19385515]
[1734281862923,2.558,3909.3,3908.6,0.8091]
[1734281863175,2.558,3909.3,3908.7,2.19384367]
[1734281863469,0.50249173,3909.1,3908.6,0.8091]
[1734281863767,0.50249173,3909.1,3908.7,2.19307258]
[1734281864371,0.50249173,3909.1,3908.6,1.55428103]
[1734281864571,0.50249173,3909.1,3908.7,0.87696417]
[1734281865481,0.50249173,3909.1,3908.6,0.74518103]
[1734281866072,0.50249173,3909.1,3908.3,1.88784551]
[1734281866299,0.50249173,3909.1,3908.4,5.1920873]
[1734281866507,0.50249173,3909.1,3908.5,3.87683492]
[1734281866667,0.50249173,3909.1,3908.4,4.00140949]
[1734281866851,0.50249173,3909.1,3908.4,1.00140949]
[1734281867052,0.50249173,3909.1,3908.4,1.59033499]
[1734281868264,0.50249173,3909.1,3908.4,0.5889255]
[1734281868473,0.50249173,3909.1,3908.3,0.8258]
[1734281868671,0.50249173,3909.1,3909.0,1.00140949]
[1734281868888,0.38394372,3910.6,3909.0,1.00140949]
[1734281868889,2.55754,3910.0,3909.0,1.00140949]
[1734281870204,0.50725007,3909.2,3909.0,1.00140949]
[1734281870412,0.50725007,3909.2,3909.1,0.48272095]
[1734281873270,0.38394372,3910.6,3909.1,0.48272095]
[1734281873476,2.55708,3910.7,3909.3,1.00140949]
[1734281873723,0.51165026,3909.6,3909.4,0.8258]
[1734281874205,1.06138685,3911.4,3909.4,0.8258]
[1734281874501,2.55682,3911.1,3909.6,1.00140949]
[1734281874684,2.55701,3910.9,3909.6,1.00140949]
[1734281874858,2.55702,3910.8,3909.6,1.00140949]
[1734281875703,0.5096333,3909.9,3909.6,1.00140949]
[1734281876661,0.5096333,3909.9,3909.7,0.8098]
[1734281882225,0.5096333,3909.9,3909.6,1.00140949]
[1734281884725,0.5096333,3909.9,3909.5,0.8098]
[1734281884904,0.5096333,3909.9,3909.3,1.81120949]
[1734281885341,0.5096333,3909.9,3909.3,1.00140949]
[1734281885650,0.81635263,3909.9,3909.3,1.00140949]
[1734281886155,0.5096333,3909.9,3909.3,1.00140949]
[1734281886454,2.55774,3909.7,3909.0,1.81120949]
[1734281886626,2.55774,3909.7,3909.0,1.00140949]
[1734281886827,2.55797,3909.4,3908.7,1.00140949]
[1734281887133,2.55793,3909.5,3908.7,1.00140949]
[1734281887657,3.0672933,3909.9,3908.7,1.00140949]
[1734281887949,2.55801,3909.3,3908.7,1.00140949]
[1734281888119,0.5187995,3909.1,3908.7,1.00140949]
[1734281895218,0.5187995,3909.1,3908.3,3.8098]
[1734281895427,0.5187995,3909.1,3908.4,1.87884542]
[1734281895625,0.5187995,3909.1,3908.4,1.00140949]
[1734281895820,2.55826,3908.9,3908.3,0.8098]
[1734281896069,2.55826,3908.9,3908.2,4.00140949]
[1734281896276,2.55826,3908.9,3908.3,0.87724998]
[1734281896432,0.5187995,3909.1,3908.5,1.00140949]
[1734281897674,3.0769595,3909.1,3908.5,1.00140949]
[1734281897880,0.30769595,3909.0,3908.5,1.00140949]
[1734281898645,2.86590595,3909.0,3908.5,1.00140949]
[1734281899927,2.55841,3908.7,3908.1,0.7522]
[1734281900193,2.55846,3908.6,3907.9,1.75360949]
[1734281900365,2.814306,3908.6,3908.0,2.19428237]
[1734281900572,2.55846,3908.6,3907.9,1.75360949]
[1734281900818,2.55846,3908.6,3908.0,1.87903587]
[1734281901001,2.55846,3908.6,3908.0,1.00140949]
[1734281904706,0.52279955,3908.1,3908.0,1.00140949]
[1734281905218,2.55853,3908.5,3908.0,1.00140949]
[1734281905597,0.255853,3908.5,3907.6,1.06204551]
[1734281905922,0.255853,3908.5,3907.6,1.00140949]
[1734281906102,2.814403,3908.5,3907.6,1.00140949]
[1734281906304,2.55861,3908.4,3907.4,0.7522]
[1734281906519,0.51133644,3908.1,3907.7,1.00140949]
[1734281906823,2.55887,3908.0,3907.4,0.7522]
[1734281907550,2.55887,3908.0,3907.3,1.00140949]
[1734281908111,0.30702064,3908.0,3907.1,0.7522]
[1734281908325,0.51133644,3908.1,3907.1,0.7522]
[1734281908627,2.55903,3907.8,3907.1,0.7522]
[1734281909355,0.255853,3908.5,3907.3,1.00140949]
[1734281909632,2.55882,3908.1,3907.3,1.00140949]
[1734281909833,2.55893,3907.9,3907.3,1.00140949]
[1734281910381,0.255853,3908.5,3907.3,1.17677044]
[1734281910936,2.55867,3908.3,3907.3,1.17677044]
[1734281912418,2.55874,3908.2,3907.3,1.17677044]
[1734281912803,0.255853,3908.5,3907.3,1.17677044]
[1734281913006,2.55876,3908.2,3907.3,1.17677044]
[1734281913787,0.52023431,3907.5,3907.3,1.17677044]
[1734281914029,0.52023431,3907.5,3907.4,0.19289704]
[1734281915220,0.52023431,3907.5,3907.2,1.00140949]